bitfinex/quotes_SOLUSD_20260302
["timestamp","ask_amount","ask_price","bid_price","bid_amount"]
[1772440301367,2.4752534,82.709,82.688,12.09365325]
[1772440303153,2.4752534,82.709,82.683,2.51383286]
[1772440303476,2.4752534,82.709,82.682,2.51383286]
[1772440303878,2.4752534,82.719,82.69,4.81602637]
[1772440304382,2.4752534,82.719,82.687,2.51383286]
[1772440305788,2.4752534,82.709,82.687,2.51383286]
[1772440305997,2.4752534,82.709,82.679,12.09491283]
[1772440306171,2.4752534,82.709,82.666,3.69383402]
[1772440306172,2.4752534,82.699,82.673,12.09573715]
[1772440306479,2.4752534,82.689,82.663,12.09731076]
[1772440306683,4.81602637,82.71,82.65,2.51383286]
[1772440306684,2.4752534,82.679,82.65,2.51383286]
[1772440307180,2.4752534,82.679,82.644,3.69383402]
[1772440307375,2.4752534,82.679,82.645,2.47003863]
[1772440307878,2.7030961,82.677,82.646,12.09979914]
[1772440308085,2.7030961,82.669,82.641,12.100446]
[1772440308389,2.7030961,82.669,82.642,2.47003863]
[1772440308575,2.7030961,82.659,82.631,12.10199561]
[1772440308794,2.7030961,82.659,82.632,2.47003863]
[1772440309084,4.81602637,82.66,82.632,2.47003863]
[1772440309389,2.7030961,82.659,82.632,2.47003863]
[1772440309561,2.7030961,82.649,82.631,12.10199561]
[1772440310285,2.7030961,82.649,82.625,12.10287443]
[1772440310589,2.7030961,82.649,82.625,14.57291306]
[1772440310959,2.7030961,82.649,82.625,12.10287443]
[1772440311482,2.7030961,82.659,82.63,4.81602637]
[1772440312069,2.7030961,82.659,82.626,2.47003863]
[1772440312883,2.7030961,82.659,82.627,12.10258148]
[1772440313061,2.7030961,82.659,82.627,14.57262011]
[1772440313262,2.7030961,82.659,82.627,12.10258148]
[1772440313492,4.81602637,82.67,82.641,2.47003863]
[1772440314792,7.51912247,82.67,82.641,2.47003863]
[1772440315892,2.7030961,82.689,82.661,2.47003863]
[1772440316896,2.7030961,82.689,82.642,42.35134677]
[1772440316897,2.7030961,82.696,82.671,2.47003863]
[1772440317262,11.47431622,82.69,82.664,2.47003863]
[1772440317484,2.7030961,82.689,82.661,2.47003863]
[1772440317786,2.7030961,82.689,82.662,12.09745711]
[1772440317990,2.7030961,82.687,82.662,12.09745711]
[1772440318468,2.7030961,82.687,82.657,12.09804662]
[1772440319083,2.7030961,82.687,82.66,11.47431622]
[1772440319293,2.7030961,82.687,82.66,13.94435485]
[1772440319587,11.47431622,82.72,82.68,11.47431622]
[1772440319768,2.7030961,82.719,82.691,12.09321449]
[1772440320168,2.7030961,82.718,82.691,12.09321449]
[1772440320370,2.7030961,82.729,82.691,42.32625073]
[1772440320574,2.7030961,82.719,82.68,11.47431622]
[1772440321289,2.7030961,82.719,82.69,11.47431622]
[1772440321664,2.7030961,82.729,82.7,11.47431622]
[1772440321986,2.7030961,82.727,82.696,12.09240428]
[1772440322382,2.7030961,82.709,82.681,12.09467713]
[1772440322686,2.7030961,82.709,82.681,14.56471576]
[1772440323972,2.7030961,82.699,82.671,12.09614012]
[1772440324693,0.5,82.71,82.681,2.47003863]
[1772440326289,0.5,82.71,82.682,12.09453085]
[1772440326590,2.7030961,82.709,82.682,12.09453085]
[1772440329199,2.7030961,82.699,82.675,12.09555477]
[1772440331598,2.7030961,82.697,82.675,12.09555477]
[1772440331893,2.7030961,82.697,82.656,3.69383402]
[1772440331894,2.7030961,82.697,82.66,11.47431622]
[1772440332100,2.7030961,82.689,82.659,2.47003863]
[1772440332889,2.7030961,82.689,82.661,12.09749304]
[1772440333099,2.7030961,82.702,82.671,2.47003863]
[1772440333299,2.7030961,82.699,82.673,2.47003863]
[1772440334214,2.7030961,82.709,82.673,2.47003863]
[1772440334502,0.5,82.7,82.673,2.47003863]
[1772440336116,2.65570434,82.732,82.681,2.6226682]
[1772440336316,42.29300594,82.756,82.7,11.46978395]
[1772440336317,2.65570434,82.729,82.7,11.46978395]
[1772440336481,2.65570434,82.729,82.691,2.6226682]
[1772440336688,2.65570434,82.719,82.691,2.6226682]
[1772440338382,2.65570434,82.719,82.68,11.46978395]
[1772440338695,2.56766051,82.717,82.691,2.72797875]
[1772440338892,2.56766051,82.717,82.69,4.81594628]
[1772440339990,2.56766051,82.717,82.691,2.72797875]
[1772440340502,2.56766051,82.717,82.692,12.09306825]
[1772440340905,2.56766051,82.717,82.693,2.72797875]
[1772440341110,2.56766051,82.717,82.7,4.81594628]
[1772440341292,4.81594628,82.73,82.693,2.72797875]
[1772440341791,4.81594628,82.73,82.701,2.72797875]
[1772440341995,16.90200176,82.74,82.701,2.72797875]
[1772440342510,16.90200176,82.74,82.703,2.72797875]
[1772440342689,4.81594628,82.73,82.703,2.72797875]
[1772440343001,16.90200176,82.74,82.703,2.72797875]
[1772440343383,2.56766051,82.739,82.703,2.72797875]
[1772440343584,2.56766051,82.739,82.702,42.32062101]
[1772440343585,2.56766051,82.739,82.711,2.72797875]
[1772440343793,2.56766051,82.749,82.721,2.72797875]
[1772440345102,2.56766051,82.749,82.722,14.81666132]
[1772440345310,2.56766051,82.749,82.723,2.72797875]
[1772440345888,2.56766051,82.749,82.717,2.72797875]
[1772440346095,2.56766051,82.739,82.702,12.091606]
[1772440346307,2.56766051,82.739,82.702,42.32062101]
[1772440346609,2.56766051,82.739,82.703,2.72797875]
[1772440347283,2.56766051,82.739,82.704,12.0913136]
[1772440347487,2.56766051,82.739,82.705,2.72797875]
[1772440348111,2.56766051,82.729,82.705,2.72797875]
[1772440349507,2.56766051,82.729,82.707,2.72797875]
[1772440349806,2.56766051,82.739,82.711,2.72797875]
[1772440350610,2.56766051,82.739,82.685,2.72797875]
[1772440350611,2.56766051,82.719,82.685,2.72797875]
[1772440351713,2.56766051,82.719,82.687,2.72797875]
[1772440352606,62.6,82.738,82.686,42.32881019]
[1772440352607,2.56766051,82.729,82.691,2.72797875]
[1772440353094,2.56766051,82.729,82.701,2.72797875]
[1772440354107,2.56766051,82.729,82.702,12.091606]
[1772440355207,2.56766051,82.729,82.703,2.72797875]
[1772440355593,2.56766051,82.719,82.702,12.091606]
[1772440356103,2.56766051,82.719,82.69,4.81594628]
[1772440356306,2.56766051,82.717,82.681,12.09467713]
[1772440356509,2.56766051,82.709,82.681,12.09467713]
[1772440358195,2.56766051,82.709,82.683,14.82236332]
[1772440358708,2.56766051,82.709,82.683,12.09438457]
[1772440359014,2.56766051,82.709,82.684,2.72797875]
[1772440359510,2.56766051,82.709,82.683,12.09438457]
[1772440360087,2.56766051,82.709,82.675,2.72797875]
[1772440360399,2.56766051,82.709,82.671,2.72797875]
[1772440360594,2.56766051,82.699,82.671,2.72797875]
[1772440361098,2.56766051,82.699,82.674,12.09557112]
[1772440361598,2.56766051,82.699,82.674,14.82354987]
[1772440361798,2.56766051,82.699,82.675,2.72797875]
[1772440362203,2.56766051,82.709,82.683,2.72797875]
[1772440363119,92.81909935,82.73,82.691,2.72797875]
[1772440363120,2.56766051,82.724,82.691,2.72797875]
[1772440363416,2.56766051,82.719,82.691,2.72797875]
[1772440364793,2.56766051,82.719,82.693,2.72797875]
[1772440364994,4.81594628,82.75,82.71,4.81594628]
[1772440365201,2.56766051,82.754,82.721,2.72797875]
[1772440365413,6.51067019,82.79,82.731,2.72797875]
[1772440365414,2.56766051,82.762,82.731,2.72797875]
[1772440365614,2.56766051,82.769,82.741,2.72797875]
[1772440365818,0.2,82.78,82.751,2.72797875]
[1772440365998,0.2,82.78,82.761,2.72797875]
[1772440366618,0.2,82.79,82.761,2.72797875]
[1772440367124,2.88445078,82.79,82.763,2.72797875]
[1772440367307,2.68445078,82.769,82.741,2.66262224]
[1772440367621,2.68445078,82.769,82.74,4.81594628]
[1772440367801,2.68445078,82.769,82.734,2.66262224]
[1772440368605,2.68445078,82.769,82.74,14.11463696]
[1772440368800,2.68445078,82.769,82.74,2.66262224]
[1772440369315,2.68445078,82.769,82.741,12.08590662]
[1772440370017,2.68445078,82.767,82.736,12.08656034]
[1772440370223,2.68445078,82.759,82.736,12.08656034]
[1772440371118,2.68445078,82.759,82.73,12.08751359]
[1772440371303,2.68445078,82.759,82.731,2.66262224]
[1772440375115,2.68445078,82.759,82.732,12.08722138]
[1772440375302,2.68445078,82.759,82.733,2.66262224]
[1772440376708,2.68445078,82.758,82.733,2.66262224]
[1772440377817,2.68445078,82.758,82.734,12.08692919]
[1772440378127,2.68445078,82.758,82.734,14.74955143]
[1772440379118,2.68445078,82.758,82.735,2.66262224]
[1772440379931,2.68445078,82.787,82.751,2.66262224]
[1772440380235,2.68445078,82.787,82.761,2.66262224]
[1772440380524,11.45201472,82.78,82.754,2.66262224]
[1772440380731,2.68445078,82.779,82.746,2.66262224]
[1772440380918,2.68445078,82.779,82.75,11.45201472]
[1772440381125,2.68445078,82.779,82.751,2.66262224]
[1772440381322,2.68445078,82.786,82.76,11.45201472]
[1772440381529,2.68445078,82.788,82.761,2.66262224]
[1772440381731,2.68445078,82.788,82.754,2.66262224]
[1772440381925,2.68445078,82.788,82.756,2.66262224]
[1772440382226,2.68445078,82.788,82.761,2.66262224]
[1772440382426,0.2,82.79,82.761,2.66262224]
[1772440382930,2.68445078,82.779,82.75,26.19909053]
[1772440383510,2.68445078,82.779,82.751,2.66262224]
[1772440384116,2.68445078,82.779,82.752,12.08430007]
[1772440384328,2.68445078,82.777,82.744,2.66262224]
[1772440385734,2.68445078,82.777,82.741,12.08590662]
[1772440385735,0.2,82.79,82.761,2.66262224]
[1772440386031,2.68445078,82.797,82.771,2.66262224]
[1772440386229,2.68445078,82.797,82.741,151.07383279]
[1772440386230,0.2,82.8,82.782,2.66262224]
[1772440386702,0.2,82.81,82.782,2.66262224]
[1772440386908,2.68445078,82.809,82.782,2.66262224]
[1772440389243,0.2,82.81,82.79,11.45201472]
[1772440389406,0.2,82.81,82.784,2.66262224]
[1772440389722,12.07467326,82.818,82.783,12.07977483]
[1772440389723,0.2,82.84,82.802,2.66262224]
[1772440389921,0.2,82.84,82.83,11.45201472]
[1772440390230,2.68445078,82.858,82.83,11.45201472]
[1772440390628,2.68445078,82.849,82.784,2.66262224]
[1772440390818,2.68445078,82.849,82.811,2.66262224]
[1772440391214,42.24043254,82.859,82.811,14.73816702]
[1772440391215,2.68445078,82.839,82.811,14.73816702]
[1772440391914,2.68445078,82.838,82.811,12.07554478]
[1772440392115,2.68445078,82.838,82.806,2.66262224]
[1772440392529,2.68445078,82.829,82.797,2.66262224]
[1772440392740,2.68445078,82.829,82.794,12.078113]
[1772440392946,14.1364655,82.82,82.794,12.078113]
[1772440393121,2.68445078,82.819,82.794,12.078113]
[1772440394042,2.68445078,82.818,82.784,30.1987533]
[1772440394222,2.68445078,82.818,82.785,12.07948299]
[1772440394416,2.68445078,82.818,82.785,14.74210523]
[1772440394621,2.68445078,82.818,82.786,2.66262224]
[1772440394944,2.72747979,82.809,82.78,23.53212463]
[1772440395237,2.72747979,82.809,82.78,12.08010991]
[1772440395426,2.72747979,82.809,82.775,2.70394959]
[1772440395820,2.72747979,82.807,82.775,2.70394959]
[1772440396829,2.72747979,82.807,82.771,12.08152613]
[1772440396830,2.72747979,82.799,82.771,12.08152613]
[1772440397034,2.72747979,82.799,82.772,2.70394959]
[1772440397619,0.5,82.81,82.791,2.46157696]
[1772440397938,48.26995034,82.868,82.801,2.46157696]
[1772440397939,2.52299263,82.829,82.801,2.46157696]
[1772440399622,2.52299263,82.829,82.803,2.46157696]
[1772440400155,2.52299263,82.827,82.802,12.07700297]
[1772440401534,2.52299263,82.827,82.796,2.46157696]
[1772440401535,2.52299263,82.827,82.797,12.07768062]
[1772440401845,2.52299263,82.825,82.8,11.44167214]
[1772440402019,2.52299263,82.825,82.8,13.9032491]
[1772440402224,2.52299263,82.825,82.801,2.46157696]
[1772440402540,2.52299263,82.829,82.801,2.46157696]
[1772440403325,2.52299263,82.828,82.801,2.46157696]
[1772440403627,2.52299263,82.819,82.791,12.0784693]
[1772440404139,2.52299263,82.809,82.786,12.07921524]
[1772440406044,2.52299263,82.82,82.79,11.44167214]
[1772440406248,2.52299263,82.819,82.791,2.46157696]
[1772440407234,2.52299263,82.817,82.791,2.46157696]
[1772440407538,2.52299263,82.809,82.771,30.20366369]
[1772440407722,2.52299263,82.799,82.772,12.08138017]
[1772440408728,2.52299263,82.789,82.748,2.46157696]
[1772440409038,2.52299263,82.779,82.75,11.44167214]
[1772440409240,2.52299263,82.779,82.751,12.0844461]
[1772440409433,2.52299263,82.779,82.751,14.54602306]
[1772440409831,2.52299263,82.779,82.752,2.46157696]
[1772440410235,2.52299263,82.769,82.74,2.46157696]
[1772440410428,2.52299263,82.769,82.736,3.69383402]
[1772440410633,2.52299263,82.769,82.742,3.69383402]
[1772440410836,2.52299263,82.769,82.739,12.08612591]
[1772440411650,11.44167214,82.76,82.733,12.08707529]
[1772440411854,2.52299263,82.759,82.725,12.0881258]
[1772440412330,2.52299263,82.759,82.726,2.46157696]
[1772440412731,2.52299263,82.759,82.731,2.46157696]
[1772440412932,2.52299263,82.759,82.725,42.30873625]
[1772440413152,2.52299263,82.759,82.726,2.46157696]
[1772440414150,2.52299263,82.759,82.727,12.08795193]
[1772440414352,2.52299263,82.759,82.727,14.54952889]
[1772440414656,2.52299263,82.759,82.731,2.46157696]
[1772440415160,2.52299263,82.777,82.75,11.44167214]
[1772440415334,2.52299263,82.777,82.751,2.46157696]
[1772440416035,2.52299263,82.759,82.73,11.44167214]
[1772440416333,2.52299263,82.759,82.731,14.54894445]
[1772440416648,2.52299263,82.759,82.731,12.08736749]
[1772440416847,2.52299263,82.757,82.731,14.54894445]
[1772440417859,2.52299263,82.749,82.726,12.08803273]
[1772440418146,2.52299263,82.749,82.727,2.46157696]
[1772440418338,2.52299263,82.749,82.721,12.08882871]
[1772440418940,2.52299263,82.749,82.722,2.46157696]
[1772440419543,2.52299263,82.759,82.731,2.46157696]
[1772440420650,2.52299263,82.757,82.723,2.46157696]
[1772440422155,12.08371598,82.756,82.727,12.08790754]
[1772440422355,2.52299263,82.755,82.727,12.08790754]
[1772440422838,2.52299263,82.749,82.727,12.08790754]
[1772440423455,2.52299263,82.749,82.727,14.5494845]
[1772440423658,2.52299263,82.749,82.727,12.08790754]
[1772440424553,2.52299263,82.749,82.712,2.46157696]
[1772440424757,2.52299263,82.739,82.713,12.08999794]
[1772440425357,2.52299263,82.739,82.708,12.0905974]
[1772440425557,2.52299263,82.729,82.702,12.09149314]
[1772440425859,2.52299263,82.729,82.692,2.46157696]
[1772440426243,2.52299263,82.709,82.686,12.09387803]
[1772440426446,2.52299263,82.709,82.682,12.09452105]
[1772440426648,2.52299263,82.709,82.675,2.46157696]
[1772440426649,2.52299263,82.699,82.677,12.09517059]
[1772440427252,2.52299263,82.699,82.668,12.09657908]
[1772440428146,2.65749111,82.697,82.668,12.09657908]
[1772440430171,2.65749111,82.695,82.668,12.09657908]
[1772440431348,2.65749111,82.749,82.682,0.14216157]
[1772440431547,2.65749111,82.749,82.721,2.56860279]
[1772440431955,2.65749111,82.749,82.73,11.44167214]
[1772440432370,2.65749111,82.749,82.73,12.08745646]
[1772440432551,2.65749111,82.749,82.721,2.56860279]
[1772440432758,2.65749111,82.749,82.722,12.08868257]
[1772440432759,2.65749111,82.748,82.722,12.08868257]
[1772440432958,2.65749111,82.748,82.723,2.56860279]
[1772440433152,2.65749111,82.768,82.74,11.44167214]
[1772440433469,2.65749111,82.768,82.738,2.56860279]
[1772440434167,2.65749111,82.768,82.731,2.56860279]
[1772440434470,2.65749111,82.766,82.733,2.56860279]
[1772440435661,2.65749111,82.759,82.73,11.44167214]
[1772440435857,2.65749111,82.759,82.731,12.08736749]
[1772440436674,2.65749111,82.759,82.732,2.56860279]
[1772440436974,11.44167214,82.77,82.731,12.08736749]
[1772440436975,2.65749111,82.768,82.741,2.56860279]
[1772440438668,2.65749111,82.768,82.742,12.08576055]
[1772440442580,2.65749111,82.749,82.725,12.08821351]
[1772440442772,2.65749111,82.739,82.711,2.56860279]
[1772440443788,2.65749111,82.739,82.714,12.08975512]
[1772440445465,2.65749111,82.749,82.715,2.56860279]
[1772440445660,2.65749111,82.749,82.721,2.56860279]
[1772440445887,2.65749111,82.749,82.73,11.44167214]
[1772440446059,2.65749111,82.749,82.723,2.56860279]
[1772440446686,2.65749111,82.747,82.716,2.56860279]
[1772440448065,2.65749111,82.759,82.721,2.56860279]
[1772440448671,11.44167214,82.75,82.721,2.56860279]
[1772440448870,11.44167214,82.75,82.717,12.0894133]
[1772440448871,2.65749111,82.749,82.717,12.0894133]
[1772440449485,2.65749111,82.729,82.7,11.44167214]
[1772440449871,2.65749111,82.739,82.711,2.56860279]
[1772440450071,2.65749111,82.739,82.713,2.56860279]
[1772440451395,11.44167214,82.75,82.713,2.56860279]
[1772440451396,2.65749111,82.744,82.713,2.56860279]
[1772440451894,2.65749111,82.744,82.72,11.44167214]
[1772440452194,2.65749111,82.744,82.71,30.2258629]
[1772440452195,2.65749111,82.744,82.715,2.56860279]
[1772440452400,12.08561449,82.743,82.72,2.56860279]
[1772440452569,14.7431056,82.743,82.72,2.56860279]
[1772440452892,2.65749111,82.742,82.72,2.56860279]
[1772440453588,2.65749111,82.742,82.715,2.56860279]
[1772440454288,12.08590662,82.741,82.716,12.08955945]
[1772440454592,2.65749111,82.74,82.716,12.08955945]
[1772440455299,2.65749111,82.74,82.716,14.68690722]
[1772440455805,2.6962256,82.753,82.721,2.59734777]
[1772440455967,2.6962256,82.753,82.73,14.03901991]
[1772440456372,2.6962256,82.753,82.731,12.08736749]
[1772440458331,2.64719111,82.751,82.73,2.59734777]
[1772440458976,2.64719111,82.751,82.73,14.68478254]
[1772440460298,2.64719111,82.759,82.731,2.64511162]
[1772440461087,62.6,82.762,82.731,2.64511162]
[1772440461475,7.457823,82.76,82.733,2.64511162]
[1772440461992,2.64719111,82.76,82.733,2.64511162]
[1772440465193,62.6,82.762,82.711,2.64511162]
[1772440465194,2.64719111,82.749,82.711,2.64511162]
[1772440466089,2.64719111,82.749,82.711,12.09029028]
[1772440466299,2.64719111,82.749,82.721,2.64511162]
[1772440467478,2.64719111,82.749,82.722,14.73379419]
[1772440468087,2.64719111,82.749,82.723,2.64511162]
[1772440469796,2.64719111,82.749,82.724,12.0883903]
[1772440469992,2.64719111,82.749,82.725,2.64511162]
[1772440470191,2.64719111,82.761,82.731,2.64511162]
[1772440471590,2.64719111,82.749,82.711,2.64511162]
[1772440471996,2.64719111,82.739,82.708,12.0906683]
[1772440473604,2.64719111,82.729,82.696,2.64511162]
[1772440474114,2.64719111,82.729,82.7,11.45714359]
[1772440474799,2.64719111,82.727,82.697,12.09220658]
[1772440475104,2.64719111,82.719,82.688,12.09364764]
[1772440476204,2.64719111,82.719,82.69,11.45714359]
[1772440476505,2.64719111,82.719,82.691,2.64511162]
[1772440477208,2.64719111,82.732,82.701,2.64511162]
[1772440477412,11.45714359,82.73,82.701,2.64511162]
[1772440477603,2.64719111,82.729,82.701,2.64511162]
[1772440479600,2.64719111,82.719,82.695,2.64511162]
[1772440482517,2.64719111,82.719,82.69,11.45714359]
[1772440482518,2.64719111,82.726,82.697,2.64511162]
[1772440483928,2.64719111,82.709,82.681,2.64511162]
[1772440484602,2.64719111,82.709,82.684,12.09411925]
[1772440486812,2.64719111,82.707,82.679,12.09490505]
[1772440487002,2.64719111,82.699,82.675,2.64511162]
[1772440487201,2.64719111,82.699,82.676,12.09540858]
[1772440487637,2.67632916,82.689,82.66,0.2]
[1772440487804,2.67632916,82.679,82.66,0.2]
[1772440488847,2.67632916,82.678,82.66,0.2]
[1772440489130,2.67632916,82.678,82.66,12.29773283]
[1772440493125,2.67632916,82.678,82.66,0.2]
[1772440493327,2.67632916,82.669,82.66,0.2]
[1772440495122,2.67632916,82.676,82.66,0.2]
[1772440495322,4.81718423,82.68,82.66,0.2]
[1772440495623,7.49351339,82.68,82.661,12.09760346]
[1772440495923,2.67632916,82.679,82.661,12.09760346]
[1772440498226,2.67632916,82.696,82.662,2.57314815]
[1772440498632,4.81718423,82.69,82.662,2.57314815]
[1772440499211,7.49351339,82.69,82.662,2.57314815]
[1772440499524,2.67632916,82.689,82.662,2.57314815]
[1772440499708,2.67632916,82.689,82.663,12.09731076]
[1772440499709,14.76991605,82.689,82.663,12.09731076]
[1772440499912,2.67632916,82.688,82.664,2.57314815]
[1772440500315,2.67632916,82.688,82.66,0.2]
[1772440500511,2.67632916,82.679,82.66,2.77314815]
[1772440500710,2.67632916,82.679,82.66,0.2]
[1772440501611,2.67632916,82.685,82.662,2.57314815]
[1772440501831,2.67632916,82.695,82.664,2.57314815]
[1772440502127,4.81718423,82.69,82.664,2.57314815]
[1772440502332,2.67632916,82.689,82.664,2.57314815]
[1772440503736,2.67632916,82.697,82.67,4.81718423]
[1772440503950,4.81718423,82.71,82.681,2.57314815]
[1772440504239,2.67632916,82.714,82.681,2.57314815]
[1772440504539,2.67632916,82.709,82.681,2.57314815]
[1772440505946,12.08941305,82.718,82.683,2.57314815]
[1772440506439,2.67632916,82.717,82.683,2.57314815]
[1772440506842,4.81718423,82.71,82.683,2.57314815]
[1772440507033,2.67632916,82.711,82.683,2.57314815]
[1772440507918,2.67632916,82.711,82.685,2.57314815]
[1772440508129,12.09002255,82.713,82.685,2.57314815]
[1772440508130,7.49351339,82.71,82.685,2.57314815]
[1772440508323,2.67632916,82.709,82.685,2.57314815]
[1772440510035,2.67632916,82.719,82.687,2.57314815]
[1772440510733,4.81718423,82.73,82.691,2.57314815]
[1772440510933,2.67632916,82.739,82.711,2.57314815]
[1772440511134,2.67632916,82.737,82.7,4.81718423]
[1772440511433,2.67632916,82.729,82.701,2.57314815]
[1772440511641,2.67632916,82.729,82.693,2.57314815]
[1772440511830,2.67632916,82.709,82.681,2.57314815]
[1772440512025,2.67632916,82.709,82.683,2.57314815]
[1772440512225,2.67632916,82.717,82.683,2.57314815]
[1772440512429,30.21667433,82.736,82.691,2.57314815]
[1772440512430,2.67632916,82.724,82.691,2.57314815]
[1772440512939,30.21667433,82.736,82.701,2.57314815]
[1772440512940,2.67632916,82.736,82.701,2.57314815]
[1772440513117,2.67632916,82.749,82.711,2.57314815]
[1772440513322,2.67632916,82.748,82.72,7.39033238]
[1772440513529,2.67632916,82.748,82.72,2.57314815]
[1772440514348,2.67632916,82.748,82.686,3.69383402]
[1772440514349,2.47402419,82.739,82.711,12.09029028]
[1772440514537,2.47402419,82.739,82.712,2.59045165]
[1772440515145,2.47402419,82.739,82.711,12.09029028]
[1772440516236,2.47402419,82.739,82.711,2.59045165]
[1772440516637,2.47402419,82.737,82.711,2.59045165]
[1772440517742,2.47402419,82.737,82.71,4.81316419]
[1772440517945,2.47402419,82.737,82.71,7.46455872]
[1772440518140,2.72815284,82.744,82.713,2.65139453]
[1772440518442,2.72815284,82.744,82.721,2.65139453]
[1772440520122,4.81316419,82.74,82.713,2.65139453]
[1772440520343,2.72815284,82.729,82.707,12.09086506]
[1772440520931,2.72815284,82.729,82.708,2.65139453]
[1772440522155,2.72815284,82.752,82.723,2.65139453]
[1772440522352,2.72815284,82.761,82.731,2.65139453]
[1772440523026,2.72815284,82.772,82.741,2.65139453]
[1772440523227,4.81316419,82.78,82.741,2.65139453]
[1772440523228,2.72815284,82.777,82.741,2.65139453]
[1772440524357,4.81316419,82.78,82.74,4.81316419]
[1772440524358,2.72815284,82.775,82.743,2.65139453]
[1772440525052,2.72815284,82.769,82.737,12.08637399]
[1772440525250,2.72815284,82.769,82.741,2.65139453]
[1772440525954,2.72815284,82.777,82.741,2.65139453]
[1772440526251,2.72815284,82.777,82.751,2.65139453]
[1772440526440,2.72815284,82.776,82.741,2.65139453]
[1772440527159,2.72815284,82.769,82.741,14.73730115]
[1772440527353,2.72815284,82.769,82.742,2.65139453]
[1772440529357,2.72815284,82.779,82.751,2.65139453]
[1772440529738,2.72815284,82.778,82.751,2.65139453]
[1772440531359,2.72815284,82.776,82.751,2.65139453]
[1772440531943,2.72815284,82.776,82.752,12.08430007]
[1772440532338,12.08000676,82.782,82.753,2.65139453]
[1772440532755,2.72815284,82.783,82.753,2.65139453]
[1772440534156,2.72815284,82.759,82.72,4.81316419]
[1772440534349,4.81316419,82.77,82.721,2.65139453]
[1772440534350,2.72815284,82.749,82.721,2.65139453]
[1772440535160,4.81316419,82.75,82.721,2.65139453]
[1772440535460,7.54131703,82.75,82.721,2.65139453]
[1772440536251,7.54131703,82.75,82.722,12.08868257]
[1772440536450,7.54131703,82.75,82.723,2.65139453]
[1772440537753,2.72815284,82.755,82.723,2.65139453]
[1772440538058,2.72815284,82.754,82.723,2.65139453]
[1772440538263,4.81316419,82.75,82.723,2.65139453]
[1772440538659,2.72815284,82.754,82.724,12.0883903]
[1772440538963,2.72815284,82.754,82.725,2.65139453]
[1772440539160,60.37809283,82.826,82.741,2.65139453]
[1772440539161,7.54131703,82.78,82.741,2.65139453]
[1772440539349,2.72815284,82.805,82.771,2.65139453]
[1772440539547,2.72815284,82.805,82.781,2.65139453]
[1772440539747,2.72815284,82.813,82.79,4.81316419]
[1772440540149,2.72815284,82.813,82.787,2.65139453]
[1772440540464,4.81316419,82.82,82.787,2.65139453]
[1772440540465,12.0755446,82.812,82.787,2.65139453]
[1772440540757,2.72815284,82.811,82.781,14.73146121]
[1772440540962,2.72815284,82.811,82.782,2.65139453]
[1772440541859,2.72815284,82.809,82.781,2.65139453]
[1772440542065,2.72815284,82.816,82.781,2.65139453]
[1772440543143,2.72815284,82.814,82.782,14.73131528]
[1772440543556,2.72815284,82.814,82.782,12.07992075]
[1772440543764,2.72815284,82.799,82.767,12.08202046]
[1772440545250,2.72815284,82.797,82.767,12.08202046]
[1772440546372,2.72815284,82.795,82.767,12.08202046]
[1772440546573,2.72815284,82.795,82.767,14.73341499]
[1772440547947,2.7064226,82.789,82.762,12.08275409]
[1772440548771,2.7064226,82.787,82.762,12.08275409]
[1772440549092,65.3064226,82.814,82.781,2.68046177]
[1772440549365,4.81316419,82.81,82.781,2.68046177]
[1772440549572,2.7064226,82.809,82.774,2.68046177]
[1772440550556,2.7064226,82.799,82.767,2.68046177]
[1772440551770,2.7064226,82.799,82.77,7.49362596]
[1772440551971,2.7064226,82.799,82.77,2.68046177]
[1772440552654,2.7064226,82.799,82.771,2.68046177]
[1772440552870,2.7064226,82.797,82.771,2.68046177]
[1772440554271,2.7064226,82.797,82.773,2.68046177]
[1772440554866,2.7064226,82.795,82.773,2.68046177]
[1772440556573,2.7064226,82.795,82.763,12.08269395]
[1772440556781,2.7064226,82.793,82.763,12.08269395]
[1772440557272,2.7064226,82.793,82.763,14.76315572]
[1772440557577,2.7064226,82.793,82.764,2.68046177]
[1772440558077,62.6,82.829,82.781,2.68046177]
[1772440558078,2.7064226,82.819,82.781,2.68046177]
[1772440558270,2.7064226,82.819,82.792,2.68046177]
[1772440558670,2.7064226,82.826,82.801,2.68046177]
[1772440559070,2.7064226,82.827,82.801,2.68046177]
[1772440559270,2.7064226,82.819,82.791,12.07860757]
[1772440560677,2.7064226,82.817,82.78,4.81316419]
[1772440560889,2.7064226,82.789,82.747,2.68046177]
[1772440561063,2.7064226,82.769,82.745,12.08532237]
[1772440561459,2.7064226,82.769,82.745,14.76578414]
[1772440562267,2.7064226,82.789,82.751,2.68046177]
[1772440562482,42.27104191,82.799,82.751,2.68046177]
[1772440562483,11.44853828,82.78,82.751,2.68046177]
[1772440563564,2.7064226,82.779,82.745,12.08532237]
[1772440563883,2.7064226,82.769,82.745,12.08532237]
[1772440564082,2.7064226,82.769,82.746,2.68046177]
[1772440564965,2.7064226,82.767,82.739,12.08606905]
[1772440565195,2.7064226,82.759,82.732,2.68046177]
[1772440565491,2.7064226,82.759,82.721,2.68046177]
[1772440565665,11.44853828,82.75,82.721,2.68046177]